[Event "*** Titled Tuesday Blitz"]
[Site "Chess.com"]
[Date "2021.03.16"]
[Round "8"]
[White "jefferyx"]
[Black "iturrizaga"]
[Result "1-0"]
[WhiteElo "3002"]
[BlackElo "2849"]
[TimeControl "180+1"]
[EndTime "11:28:02 PDT"]
[Termination "jefferyx won on time"]

1. d4 {[%clk 0:03:00.9]} 1... Nf6 {[%clk 0:02:59.7]} 2. c4 {[%clk 0:02:59.9]}
2... e6 {[%clk 0:03:00.1]} 3. Nc3 {[%clk 0:02:59.8]} 3... Bb4 {[%clk 0:03:00.5]}
4. Qc2 {[%clk 0:02:56.4]} 4... c5 {[%clk 0:03:00.9]} 5. dxc5 {[%clk 0:02:53.3]}
5... O-O {[%clk 0:03:01.2]} 6. Nf3 {[%clk 0:02:51.1]} 6... Bxc5 {[%clk
0:03:00.1]} 7. Bf4 {[%clk 0:02:39.7]} 7... Nc6 {[%clk 0:02:58.9]} 8. e3 {[%clk
0:02:36.6]} 8... Nh5 {[%clk 0:02:48.2]} 9. Bg5 {[%clk 0:02:31.6]} 9... Be7
{[%clk 0:02:42.4]} 10. h4 {[%clk 0:02:22.2]} 10... f5 {[%clk 0:02:39.1]} 11. Rd1
{[%clk 0:02:17]} 11... h6 {[%clk 0:02:35.1]} 12. Bxe7 {[%clk 0:02:09.7]} 12...
Qxe7 {[%clk 0:02:36]} 13. Nb5 {[%clk 0:02:10.1]} 13... b6 {[%clk 0:02:32.1]} 14.
Be2 {[%clk 0:02:08]} 14... Bb7 {[%clk 0:02:27.5]} 15. Nd6 {[%clk 0:02:04.3]}
15... Rab8 {[%clk 0:02:27.7]} 16. O-O {[%clk 0:02:00.8]} 16... Ba8 {[%clk
0:02:26.4]} 17. Qa4 {[%clk 0:01:58.7]} 17... Nf6 {[%clk 0:02:24.9]} 18. Qa3
{[%clk 0:01:54.2]} 18... Ng4 {[%clk 0:02:20.6]} 19. Nb5 {[%clk 0:01:49.4]} 19...
Qf7 {[%clk 0:02:02.1]} 20. Qd6 {[%clk 0:01:45.4]} 20... Rbd8 {[%clk 0:01:58]}
21. Qg3 {[%clk 0:01:41.2]} 21... Qf6 {[%clk 0:01:57.5]} 22. Rd2 {[%clk
0:01:41.1]} 22... e5 {[%clk 0:01:10.3]} 23. Rfd1 {[%clk 0:01:35.4]} 23... Qe7
{[%clk 0:00:58.4]} 24. h5 {[%clk 0:01:28]} 24... e4 {[%clk 0:00:41.9]} 25. Nh4
{[%clk 0:01:27.7]} 25... Nce5 {[%clk 0:00:42.4]} 26. Nd6 {[%clk 0:01:23.2]}
26... Qg5 {[%clk 0:00:36.4]} 27. Bxg4 {[%clk 0:00:53.4]} 27... Nxg4 {[%clk
0:00:24.9]} 28. Ng6 {[%clk 0:00:51.9]} 28... Rf6 {[%clk 0:00:22.7]} 29. Rd5
{[%clk 0:00:27.1]} 29... Bxd5 {[%clk 0:00:22.5]} 30. Rxd5 {[%clk 0:00:28]} 30...
Qxh5 {[%clk 0:00:14.9]} 31. Nxf5 {[%clk 0:00:27.9]} 31... Rxf5 {[%clk
0:00:02.1]} 32. Ne7+ {[%clk 0:00:27.2]} 32... Kh7 {[%clk 0:00:02.4]} 33. Rxf5
{[%clk 0:00:22.1]} 33... Qe8 {[%clk 0:00:02.7]} 34. Nd5 {[%clk 0:00:22.1]} 34...
h5 {[%clk 0:00:02.1]} 35. Qh4 {[%clk 0:00:18]} 35... g6 {[%clk 0:00:02.5]} 36.
Rg5 {[%clk 0:00:16]} 36... Rc8 {[%clk 0:00:01.9]} 37. Rxg4 {[%clk 0:00:15.6]}
1-0

[Event "*** Titled Tuesday Blitz"]
[Site "Chess.com"]
[Date "2021.03.16"]
[Round "8"]
[White "Gloomy_Wanderer"]
[Black "Alexander_Moskalenko"]
[Result "1-0"]
[WhiteElo "2696"]
[BlackElo "2766"]
[TimeControl "180+1"]
[EndTime "11:28:04 PDT"]
[Termination "Gloomy_Wanderer won by resignation"]

1. d4 {[%clk 0:03:00.9]} 1... Nf6 {[%clk 0:02:58.4]} 2. Nf3 {[%clk 0:03:00.7]}
2... g6 {[%clk 0:02:56.2]} 3. c4 {[%clk 0:03:00.9]} 3... Bg7 {[%clk 0:02:54.6]}
4. g3 {[%clk 0:03:01.3]} 4... O-O {[%clk 0:02:55.5]} 5. Bg2 {[%clk 0:03:01.3]}
5... c5 {[%clk 0:02:55.6]} 6. O-O {[%clk 0:03:01.1]} 6... cxd4 {[%clk
0:02:56.1]} 7. Nxd4 {[%clk 0:03:02]} 7... Nc6 {[%clk 0:02:56.8]} 8. Nc3 {[%clk
0:03:02.1]} 8... Qa5 {[%clk 0:02:57.3]} 9. Nb3 {[%clk 0:03:01.5]} 9... Qh5
{[%clk 0:02:57.1]} 10. Nd5 {[%clk 0:03:01.8]} 10... d6 {[%clk 0:02:49.2]} 11.
Nf4 {[%clk 0:03:01.8]} 11... Qe5 {[%clk 0:02:48.8]} 12. h3 {[%clk 0:02:58.6]}
12... a5 {[%clk 0:02:43.5]} 13. a4 {[%clk 0:02:52.1]} 13... Be6 {[%clk
0:02:39.5]} 14. Nxe6 {[%clk 0:02:46.2]} 14... Qxe6 {[%clk 0:02:40.4]} 15. c5
{[%clk 0:02:45.8]} 15... Rfd8 {[%clk 0:02:38.2]} 16. Bd2 {[%clk 0:02:31.6]}
16... Ne4 {[%clk 0:02:33.5]} 17. Be3 {[%clk 0:01:53.3]} 17... Nxc5 {[%clk
0:02:24]} 18. Bd5 {[%clk 0:01:18.9]} 18... Qxh3 {[%clk 0:02:22]} 19. Nxc5 {[%clk
0:01:19.2]} 19... dxc5 {[%clk 0:02:21.9]} 20. Qb3 {[%clk 0:01:19.6]} 20... e6
{[%clk 0:02:17.8]} 21. Bg2 {[%clk 0:01:19.7]} 21... Qf5 {[%clk 0:02:15.3]} 22.
Qxb7 {[%clk 0:01:19.2]} 22... Nd4 {[%clk 0:02:15.6]} 23. Bxd4 {[%clk 0:01:12.4]}
23... Bxd4 {[%clk 0:02:13.5]} 24. e3 {[%clk 0:01:12.6]} 24... Rab8 {[%clk
0:02:11.7]} 25. Qc7 {[%clk 0:01:11.7]} 25... Bxb2 {[%clk 0:02:09.4]} 26. Rab1
{[%clk 0:01:11.1]} 26... c4 {[%clk 0:01:58.9]} 27. Rxb2 {[%clk 0:01:09.5]} 27...
Rbc8 {[%clk 0:01:44.3]} 28. Qf4 {[%clk 0:01:09.4]} 28... c3 {[%clk 0:01:32.7]}
29. Qxf5 {[%clk 0:01:08.7]} 29... gxf5 {[%clk 0:01:33.6]} 30. Rc2 {[%clk
0:01:09.1]} 30... Rc4 {[%clk 0:01:34]} 31. Rfc1 {[%clk 0:01:08.6]} 31... Rdc8
{[%clk 0:01:34.1]} 32. Ra1 {[%clk 0:01:04.6]} 32... h5 {[%clk 0:01:31.6]} 33.
Bf1 {[%clk 0:01:03.7]} 33... Rb4 {[%clk 0:01:31.4]} 34. Ra3 {[%clk 0:01:02.1]}
34... h4 {[%clk 0:01:29.2]} 35. gxh4 {[%clk 0:00:51.4]} 35... Rxh4 {[%clk
0:01:30.1]} 36. Bb5 {[%clk 0:00:49.4]} 36... Kh7 {[%clk 0:01:18.9]} 37. Raxc3
{[%clk 0:00:49.2]} 37... Rg8+ {[%clk 0:01:19.5]} 38. Kf1 {[%clk 0:00:49.7]}
38... f4 {[%clk 0:01:20.4]} 39. exf4 {[%clk 0:00:45.3]} 39... Rgg4 {[%clk
0:01:14.4]} 40. Rc4 {[%clk 0:00:38.7]} 40... Rxf4 {[%clk 0:01:13.6]} 41. Rxf4
{[%clk 0:00:38.3]} 41... Rxf4 {[%clk 0:01:14.5]} 42. Rc7 {[%clk 0:00:38.5]}
42... Kg6 {[%clk 0:01:14.3]} 43. Ra7 {[%clk 0:00:38.6]} 43... f5 {[%clk
0:01:14.8]} 44. Rxa5 {[%clk 0:00:38.7]} 44... e5 {[%clk 0:01:14.5]} 45. Ra8
{[%clk 0:00:38.8]} 45... Rb4 {[%clk 0:01:13.6]} 46. Re8 {[%clk 0:00:37.1]} 46...
Kf6 {[%clk 0:01:12.3]} 47. Rb8 {[%clk 0:00:35.8]} 47... e4 {[%clk 0:01:12.2]}
48. a5 {[%clk 0:00:35.2]} 48... f4 {[%clk 0:01:11.3]} 49. a6 {[%clk 0:00:34.9]}
49... f3 {[%clk 0:01:11.1]} 50. Kg1 {[%clk 0:00:29.1]} 50... Rb1+ {[%clk
0:01:10.4]} 51. Kh2 {[%clk 0:00:29.5]} 51... e3 {[%clk 0:01:10.9]} 52. fxe3
{[%clk 0:00:28.6]} 52... f2 {[%clk 0:01:10.4]} 53. a7 {[%clk 0:00:19.5]} 53...
Rxb5 {[%clk 0:01:06.6]} 54. Rf8+ {[%clk 0:00:19.2]} 54... Ke7 {[%clk 0:01:00.3]}
55. a8=Q {[%clk 0:00:17.1]} 55... f1=Q {[%clk 0:00:59.2]} 56. Qe8+ {[%clk
0:00:14.5]} 56... Kd6 {[%clk 0:00:58.5]} 57. Rxf1 {[%clk 0:00:14.5]} 57... Rh5+
{[%clk 0:00:59.2]} 58. Kg3 {[%clk 0:00:14.6]} 58... Rg5+ {[%clk 0:00:59]} 59.
Kh4 {[%clk 0:00:14.9]} 59... Rg4+ {[%clk 0:00:58.8]} 60. Kxg4 {[%clk 0:00:14.4]}
1-0

[Event "*** Titled Tuesday Blitz"]
[Site "Chess.com"]
[Date "2021.03.16"]
[Round "8"]
[White "WilliamSchill"]
[Black "bricolageur"]
[Result "0-1"]
[WhiteElo "2143"]
[BlackElo "2279"]
[TimeControl "180+1"]
[EndTime "11:28:07 PDT"]
[Termination "bricolageur won by checkmate"]

1. e4 {[%clk 0:03:00.9]} 1... e5 {[%clk 0:03:00.2]} 2. Nf3 {[%clk 0:03:00.5]}
2... Nc6 {[%clk 0:03:00.7]} 3. Nc3 {[%clk 0:03:00.5]} 3... Nf6 {[%clk
0:03:00.8]} 4. Be2 {[%clk 0:03:00.7]} 4... Bb4 {[%clk 0:02:55.8]} 5. Nd5 {[%clk
0:02:59.6]} 5... Ba5 {[%clk 0:02:55.2]} 6. c3 {[%clk 0:02:43.9]} 6... Nxe4
{[%clk 0:02:49.8]} 7. a4 {[%clk 0:02:33.4]} 7... Bb6 {[%clk 0:02:44.1]} 8. Qc2
{[%clk 0:02:26]} 8... Nf6 {[%clk 0:02:16.2]} 9. Nxb6 {[%clk 0:01:54.4]} 9...
axb6 {[%clk 0:02:17.1]} 10. d3 {[%clk 0:01:54.2]} 10... h6 {[%clk 0:02:13.9]}
11. O-O {[%clk 0:01:52.9]} 11... O-O {[%clk 0:02:09.6]} 12. b4 {[%clk
0:01:49.1]} 12... d6 {[%clk 0:02:07.5]} 13. h3 {[%clk 0:01:48.4]} 13... Bf5
{[%clk 0:02:05.8]} 14. Bb2 {[%clk 0:01:40.8]} 14... Qd7 {[%clk 0:01:52.4]} 15.
Rfe1 {[%clk 0:01:40.1]} 15... Nd5 {[%clk 0:01:36.2]} 16. Rad1 {[%clk 0:01:33]}
16... Rae8 {[%clk 0:01:07.5]} 17. b5 {[%clk 0:01:29.9]} 17... Nd8 {[%clk
0:01:01.8]} 18. Qb3 {[%clk 0:01:18.4]} 18... Nf4 {[%clk 0:01:01]} 19. Bf1 {[%clk
0:01:18.7]} 19... Nde6 {[%clk 0:00:39.9]} 20. d4 {[%clk 0:01:18.5]} 20... e4
{[%clk 0:00:36.6]} 21. Nh2 {[%clk 0:01:13.8]} 21... d5 {[%clk 0:00:27.9]} 22. c4
{[%clk 0:01:11.9]} 22... c6 {[%clk 0:00:26.5]} 23. Ba3 {[%clk 0:01:01.1]} 23...
Ng5 {[%clk 0:00:18]} 24. Bxf8 {[%clk 0:00:57.2]} 24... Rxf8 {[%clk 0:00:18.5]}
25. bxc6 {[%clk 0:00:54.7]} 25... bxc6 {[%clk 0:00:18.9]} 26. cxd5 {[%clk
0:00:54.9]} 26... cxd5 {[%clk 0:00:17.3]} 27. Re3 {[%clk 0:00:49.4]} 27... Qd6
{[%clk 0:00:15.7]} 28. Rb1 {[%clk 0:00:45.9]} 28... Ra8 {[%clk 0:00:12.9]} 29.
Qxb6 {[%clk 0:00:44.2]} 29... Qxb6 {[%clk 0:00:12.8]} 30. Rxb6 {[%clk
0:00:44.1]} 30... Rxa4 {[%clk 0:00:13.7]} 31. Rb8+ {[%clk 0:00:31.5]} 31... Kh7
{[%clk 0:00:13.6]} 32. h4 {[%clk 0:00:31.8]} 32... Nge6 {[%clk 0:00:12.7]} 33.
g3 {[%clk 0:00:32]} 33... Nh3+ {[%clk 0:00:10.1]} 34. Bxh3 {[%clk 0:00:27.8]}
34... Bxh3 {[%clk 0:00:11]} 35. Rb1 {[%clk 0:00:26.1]} 35... Nxd4 {[%clk
0:00:10.5]} 36. Rd1 {[%clk 0:00:23.2]} 36... Be6 {[%clk 0:00:07.4]} 37. Nf1
{[%clk 0:00:19.9]} 37... Nf3+ {[%clk 0:00:07.5]} 38. Kh1 {[%clk 0:00:18.3]}
38... f5 {[%clk 0:00:08]} 39. Nd2 {[%clk 0:00:16.1]} 39... d4 {[%clk 0:00:06.5]}
40. Re2 {[%clk 0:00:10.5]} 40... Ne5 {[%clk 0:00:06.9]} 41. Nxe4 {[%clk
0:00:09.9]} 41... fxe4 {[%clk 0:00:05.4]} 42. Kg1 {[%clk 0:00:05.6]} 42... Nf3+
{[%clk 0:00:05.4]} 43. Kf1 {[%clk 0:00:05.1]} 43... Bh3# {[%clk 0:00:05.5]} 0-1

[Event "*** Titled Tuesday Blitz"]
[Site "Chess.com"]
[Date "2021.03.16"]
[Round "8"]
[White "elegant285"]
[Black "Agibileg"]
[Result "1-0"]
[WhiteElo "2408"]
[BlackElo "2506"]
[TimeControl "180+1"]
[EndTime "11:28:09 PDT"]
[Termination "elegant285 won by checkmate"]

1. d4 {[%clk 0:03:00.9]} 1... Nf6 {[%clk 0:02:59.7]} 2. c4 {[%clk 0:03:01]} 2...
g6 {[%clk 0:03:00]} 3. Nc3 {[%clk 0:03:01.1]} 3... Bg7 {[%clk 0:03:00.1]} 4. e4
{[%clk 0:03:01.3]} 4... O-O {[%clk 0:02:59.4]} 5. Be2 {[%clk 0:03:01.7]} 5... d6
{[%clk 0:02:57.8]} 6. Bg5 {[%clk 0:03:02.2]} 6... c5 {[%clk 0:02:53.2]} 7. d5
{[%clk 0:03:01.7]} 7... e6 {[%clk 0:02:51.4]} 8. Qd2 {[%clk 0:02:57.6]} 8...
exd5 {[%clk 0:02:48.4]} 9. exd5 {[%clk 0:02:58.5]} 9... Bf5 {[%clk 0:02:41]} 10.
Nf3 {[%clk 0:02:56.1]} 10... Nbd7 {[%clk 0:02:40.4]} 11. O-O {[%clk 0:02:54.9]}
11... Qb6 {[%clk 0:02:31.7]} 12. Nh4 {[%clk 0:02:08.5]} 12... Ne4 {[%clk
0:01:44.2]} 13. Nxe4 {[%clk 0:02:07.7]} 13... Bxe4 {[%clk 0:01:45.1]} 14. f3
{[%clk 0:02:08.6]} 14... Bd4+ {[%clk 0:01:39.6]} 15. Kh1 {[%clk 0:02:08.3]}
15... Qxb2 {[%clk 0:01:18.7]} 16. Qxb2 {[%clk 0:01:47]} 16... Bxb2 {[%clk
0:01:19.6]} 17. fxe4 {[%clk 0:01:47.3]} 17... Bxa1 {[%clk 0:01:19.5]} 18. Rxa1
{[%clk 0:01:47.2]} 18... Rfe8 {[%clk 0:01:14.3]} 19. Nf3 {[%clk 0:01:25.1]}
19... Rxe4 {[%clk 0:01:12.8]} 20. Bd3 {[%clk 0:01:25.5]} 20... Ree8 {[%clk
0:01:12]} 21. Bf4 {[%clk 0:01:25.7]} 21... Rad8 {[%clk 0:00:56.9]} 22. Bxd6
{[%clk 0:01:18.4]} 22... Re3 {[%clk 0:00:56.8]} 23. Rd1 {[%clk 0:01:13.4]} 23...
b6 {[%clk 0:00:42.6]} 24. Bf4 {[%clk 0:01:09.7]} 24... Re7 {[%clk 0:00:41.8]}
25. Bg5 {[%clk 0:01:06.1]} 25... f6 {[%clk 0:00:41.8]} 26. Bf4 {[%clk
0:01:06.2]} 26... Kf7 {[%clk 0:00:27.4]} 27. Kg1 {[%clk 0:01:05.2]} 27... Nf8
{[%clk 0:00:19.2]} 28. Kf2 {[%clk 0:01:04.1]} 28... g5 {[%clk 0:00:17.7]} 29.
Bd2 {[%clk 0:00:50.9]} 29... Ng6 {[%clk 0:00:17.3]} 30. Bc3 {[%clk 0:00:49.1]}
30... Nf4 {[%clk 0:00:15.9]} 31. Bf1 {[%clk 0:00:46.6]} 31... h5 {[%clk
0:00:14.2]} 32. g3 {[%clk 0:00:46.1]} 32... Ng6 {[%clk 0:00:14.4]} 33. Bd3
{[%clk 0:00:45.3]} 33... Rde8 {[%clk 0:00:13.7]} 34. Bf5 {[%clk 0:00:36.9]}
34... Rd8 {[%clk 0:00:12.4]} 35. Be6+ {[%clk 0:00:34.4]} 35... Kg7 {[%clk
0:00:12.6]} 36. Nxg5 {[%clk 0:00:29.8]} 36... Ne5 {[%clk 0:00:11.7]} 37. Bxe5
{[%clk 0:00:28.3]} 37... fxe5 {[%clk 0:00:11.2]} 38. h4 {[%clk 0:00:27.8]} 38...
Kf6 {[%clk 0:00:10.9]} 39. Ne4+ {[%clk 0:00:26]} 39... Kg7 {[%clk 0:00:09.4]}
40. Ng5 {[%clk 0:00:24.1]} 40... Kf6 {[%clk 0:00:08.5]} 41. Ke3 {[%clk
0:00:23.6]} 41... Ree8 {[%clk 0:00:07.4]} 42. Rf1+ {[%clk 0:00:23.1]} 42... Kg7
{[%clk 0:00:07.8]} 43. Rf7+ {[%clk 0:00:22.8]} 43... Kg6 {[%clk 0:00:07.8]} 44.
Bf5+ {[%clk 0:00:21]} 44... Kh6 {[%clk 0:00:07.4]} 45. Rh7# {[%clk 0:00:21.5]}
1-0

[Event "*** Titled Tuesday Blitz"]
[Site "Chess.com"]
[Date "2021.03.16"]
[Round "8"]
[White "Kotofeyca"]
[Black "esrosenberg"]
[Result "1-0"]
[WhiteElo "2348"]
[BlackElo "2213"]
[TimeControl "180+1"]
[EndTime "11:28:10 PDT"]
[Termination "Kotofeyca won by resignation"]

1. d4 {[%clk 0:02:56.6]} 1... Nf6 {[%clk 0:02:59.8]} 2. c4 {[%clk 0:02:55.8]}
2... e6 {[%clk 0:02:59.7]} 3. Nf3 {[%clk 0:02:55.7]} 3... d5 {[%clk 0:02:59.5]}
4. Nc3 {[%clk 0:02:55.7]} 4... Bb4 {[%clk 0:02:59.9]} 5. cxd5 {[%clk 0:02:53.7]}
5... exd5 {[%clk 0:02:59.7]} 6. a3 {[%clk 0:02:52]} 6... Bxc3+ {[%clk
0:02:57.3]} 7. bxc3 {[%clk 0:02:52.9]} 7... O-O {[%clk 0:02:57]} 8. Bg5 {[%clk
0:02:52.7]} 8... h6 {[%clk 0:02:56.7]} 9. Bh4 {[%clk 0:02:52.8]} 9... c5 {[%clk
0:02:53.1]} 10. dxc5 {[%clk 0:02:27.4]} 10... Nbd7 {[%clk 0:02:43.9]} 11. Qd4
{[%clk 0:02:21.5]} 11... Re8 {[%clk 0:02:39.7]} 12. e3 {[%clk 0:02:16.8]} 12...
Re4 {[%clk 0:02:37.3]} 13. Qd2 {[%clk 0:02:12.3]} 13... Rxh4 {[%clk 0:02:22.8]}
14. Nxh4 {[%clk 0:02:09.6]} 14... Ne4 {[%clk 0:02:23.3]} 15. Qxd5 {[%clk
0:01:24]} 15... Qxh4 {[%clk 0:02:21]} 16. g3 {[%clk 0:01:24.2]} 16... Qe7 {[%clk
0:02:14.6]} 17. c6 {[%clk 0:00:56]} 17... bxc6 {[%clk 0:01:51.3]} 18. Qxc6
{[%clk 0:00:51.3]} 18... Rb8 {[%clk 0:01:51.3]} 19. Bg2 {[%clk 0:00:45.8]} 19...
Bb7 {[%clk 0:01:39.8]} 20. Qc7 {[%clk 0:00:45.6]} 20... Nxf2 {[%clk 0:00:48.5]}
21. Kxf2 {[%clk 0:00:19]} 21... Bxg2 {[%clk 0:00:46.2]} 22. Kxg2 {[%clk
0:00:08.9]} 22... Rb2+ {[%clk 0:00:46.6]} 23. Kh3 {[%clk 0:00:09.1]} 23... Qe6+
{[%clk 0:00:43.1]} 24. g4 {[%clk 0:00:09.2]} 24... Qxe3+ {[%clk 0:00:41.7]} 25.
Qg3 {[%clk 0:00:07.9]} 25... Qe6 {[%clk 0:00:38.7]} 26. Rhb1 {[%clk 0:00:05.3]}
26... Rxb1 {[%clk 0:00:37.1]} 27. Rxb1 {[%clk 0:00:05.8]} 27... Nb6 {[%clk
0:00:34.8]} 28. Re1 {[%clk 0:00:05]} 28... Qf6 {[%clk 0:00:31.6]} 29. Qd3 {[%clk
0:00:04.1]} 29... g6 {[%clk 0:00:29.9]} 30. Re8+ {[%clk 0:00:04]} 30... Kg7
{[%clk 0:00:30.2]} 31. Qd4 {[%clk 0:00:04.4]} 31... Qxd4 {[%clk 0:00:29.6]} 32.
cxd4 {[%clk 0:00:05.3]} 32... Nc4 {[%clk 0:00:28.5]} 33. d5 {[%clk 0:00:05]}
33... f6 {[%clk 0:00:27.2]} 34. Re7+ {[%clk 0:00:04.2]} 34... Kf8 {[%clk
0:00:27.4]} 35. Rxa7 {[%clk 0:00:05.1]} 35... Ke8 {[%clk 0:00:24.8]} 36. a4
{[%clk 0:00:05.6]} 36... Ne3 {[%clk 0:00:20.7]} 37. a5 {[%clk 0:00:06.1]} 37...
Nxd5 {[%clk 0:00:20.9]} 38. a6 {[%clk 0:00:06.4]} 38... Kd8 {[%clk 0:00:19.4]}
39. Rh7 {[%clk 0:00:06.8]} 39... Nf4+ {[%clk 0:00:18.8]} 40. Kg3 {[%clk
0:00:05.6]} 40... g5 {[%clk 0:00:18.1]} 41. a7 {[%clk 0:00:04.9]} 41... Ne2+
{[%clk 0:00:14.8]} 42. Kf2 {[%clk 0:00:05.8]} 1-0

[Event "*** Titled Tuesday Blitz"]
[Site "Chess.com"]
[Date "2021.03.16"]
[Round "8"]
[White "VladaSviridova"]
[Black "Maddie"]
[Result "1-0"]
[WhiteElo "2213"]
[BlackElo "2063"]
[TimeControl "180+1"]
[EndTime "11:28:11 PDT"]
[Termination "VladaSviridova won by checkmate"]

1. d4 {[%clk 0:03:00.9]} 1... d5 {[%clk 0:02:48.5]} 2. c4 {[%clk 0:03:01]} 2...
e6 {[%clk 0:02:47.3]} 3. Nf3 {[%clk 0:03:01.4]} 3... c6 {[%clk 0:02:45.1]} 4.
Nc3 {[%clk 0:03:01]} 4... dxc4 {[%clk 0:02:44]} 5. a4 {[%clk 0:02:58.4]} 5...
Bb4 {[%clk 0:02:39.5]} 6. e3 {[%clk 0:02:58]} 6... b5 {[%clk 0:02:34.6]} 7. Bd2
{[%clk 0:02:53.5]} 7... a5 {[%clk 0:02:26.5]} 8. axb5 {[%clk 0:02:51.9]} 8...
Bxc3 {[%clk 0:02:26.3]} 9. Bxc3 {[%clk 0:02:52.6]} 9... cxb5 {[%clk 0:02:25.1]}
10. b3 {[%clk 0:02:53.3]} 10... Bb7 {[%clk 0:02:21.8]} 11. bxc4 {[%clk
0:02:53.6]} 11... b4 {[%clk 0:02:21.7]} 12. Bb2 {[%clk 0:02:54.3]} 12... Nd7
{[%clk 0:02:19.6]} 13. Bd3 {[%clk 0:02:47.6]} 13... Ngf6 {[%clk 0:02:17.7]} 14.
O-O {[%clk 0:02:46.9]} 14... O-O {[%clk 0:02:16.4]} 15. Nd2 {[%clk 0:02:42.4]}
15... Qc7 {[%clk 0:01:59.9]} 16. Bc2 {[%clk 0:02:42.2]} 16... Rac8 {[%clk
0:01:58.4]} 17. f4 {[%clk 0:02:03.3]} 17... Rfd8 {[%clk 0:01:47.9]} 18. Qe2
{[%clk 0:01:59.9]} 18... Nb6 {[%clk 0:01:34.9]} 19. c5 {[%clk 0:01:59.1]} 19...
Nbd5 {[%clk 0:01:32.4]} 20. Nc4 {[%clk 0:01:57.5]} 20... Ra8 {[%clk 0:01:26.8]}
21. Bd3 {[%clk 0:01:49.8]} 21... a4 {[%clk 0:01:20.3]} 22. Nd6 {[%clk
0:01:10.9]} 22... Bc6 {[%clk 0:01:06.5]} 23. e4 {[%clk 0:01:07]} 23... Ne7
{[%clk 0:00:54]} 24. Qc2 {[%clk 0:00:33.6]} 24... a3 {[%clk 0:00:51.3]} 25. Bc1
{[%clk 0:00:33.2]} 25... Ba4 {[%clk 0:00:50.4]} 26. Qf2 {[%clk 0:00:27.1]} 26...
Bc6 {[%clk 0:00:37.2]} 27. Qh4 {[%clk 0:00:25.7]} 27... Ng6 {[%clk 0:00:34.2]}
28. Qh3 {[%clk 0:00:22.5]} 28... Ne8 {[%clk 0:00:23.3]} 29. f5 {[%clk
0:00:20.4]} 29... exf5 {[%clk 0:00:22.7]} 30. exf5 {[%clk 0:00:20]} 30... Nf8
{[%clk 0:00:18]} 31. Bf4 {[%clk 0:00:18.5]} 31... Qb7 {[%clk 0:00:17.2]} 32. f6
{[%clk 0:00:17.3]} 32... g6 {[%clk 0:00:16.7]} 33. Be5 {[%clk 0:00:16.7]} 33...
Nxd6 {[%clk 0:00:16.3]} 34. Bxd6 {[%clk 0:00:16.3]} 34... Ne6 {[%clk 0:00:14.9]}
35. Bc4 {[%clk 0:00:15.3]} 35... b3 {[%clk 0:00:14.4]} 36. Bxe6 {[%clk
0:00:14.8]} 36... fxe6 {[%clk 0:00:15.3]} 37. f7+ {[%clk 0:00:14.8]} 37... Kg7
{[%clk 0:00:14.5]} 38. Be5+ {[%clk 0:00:15]} 38... Kf8 {[%clk 0:00:14]} 39. Qh6+
{[%clk 0:00:15.1]} 39... Ke7 {[%clk 0:00:14]} 40. Qg5+ {[%clk 0:00:15.2]} 40...
Kf8 {[%clk 0:00:13.5]} 41. Bd6+ {[%clk 0:00:15.1]} 41... Kg7 {[%clk 0:00:12.2]}
42. Qe5+ {[%clk 0:00:13.9]} 42... Kh6 {[%clk 0:00:11.9]} 43. Qf4+ {[%clk
0:00:13.1]} 43... Kg7 {[%clk 0:00:11.5]} 44. Qf6+ {[%clk 0:00:13.4]} 44... Kh6
{[%clk 0:00:11]} 45. Bf4+ {[%clk 0:00:13.9]} 45... Kh5 {[%clk 0:00:10.6]} 46.
Qg5# {[%clk 0:00:14.4]} 1-0

[Event "*** Titled Tuesday Blitz"]
[Site "Chess.com"]
[Date "2021.03.16"]
[Round "8"]
[White "Kurkusha"]
[Black "Kislov_Oleg"]
[Result "1-0"]
[WhiteElo "2363"]
[BlackElo "2440"]
[TimeControl "180+1"]
[EndTime "11:28:13 PDT"]
[Termination "Kurkusha won by resignation"]

1. Nf3 {[%clk 0:03:00.9]} 1... d5 {[%clk 0:02:49.9]} 2. e3 {[%clk 0:03:00.8]}
2... Nf6 {[%clk 0:02:49.5]} 3. c4 {[%clk 0:03:00.7]} 3... e6 {[%clk 0:02:49.4]}
4. Nc3 {[%clk 0:03:00.8]} 4... c5 {[%clk 0:02:48.6]} 5. cxd5 {[%clk 0:03:00.5]}
5... exd5 {[%clk 0:02:48.4]} 6. d4 {[%clk 0:03:00.1]} 6... Nc6 {[%clk
0:02:46.6]} 7. Bb5 {[%clk 0:02:57.3]} 7... Bd6 {[%clk 0:02:41.5]} 8. O-O {[%clk
0:02:56.5]} 8... O-O {[%clk 0:02:36.2]} 9. Bd3 {[%clk 0:02:45.2]} 9... Bg4
{[%clk 0:02:32]} 10. Be2 {[%clk 0:02:20.4]} 10... Re8 {[%clk 0:02:27]} 11. h3
{[%clk 0:02:16.3]} 11... Bh5 {[%clk 0:02:26.2]} 12. dxc5 {[%clk 0:02:03.6]}
12... Bxc5 {[%clk 0:02:25.9]} 13. Nd4 {[%clk 0:02:03.5]} 13... Bxe2 {[%clk
0:02:20.4]} 14. Ncxe2 {[%clk 0:02:04.4]} 14... Ne4 {[%clk 0:02:18.4]} 15. Nb3
{[%clk 0:02:01]} 15... Bb6 {[%clk 0:01:51.7]} 16. Nf4 {[%clk 0:01:39.7]} 16...
d4 {[%clk 0:01:40.4]} 17. exd4 {[%clk 0:01:14.4]} 17... Nxd4 {[%clk 0:01:38.9]}
18. Be3 {[%clk 0:01:03.6]} 18... Nxb3 {[%clk 0:01:19]} 19. Qxb3 {[%clk
0:01:02.4]} 19... Bxe3 {[%clk 0:01:17.6]} 20. Qxe3 {[%clk 0:01:02.4]} 20... Nd2
{[%clk 0:01:14.1]} 21. Qg3 {[%clk 0:01:00.9]} 21... Nxf1 {[%clk 0:01:12.8]} 22.
Rxf1 {[%clk 0:01:01.8]} 22... Qd4 {[%clk 0:00:53.9]} 23. b3 {[%clk 0:00:52]}
23... Rac8 {[%clk 0:00:48.4]} 24. Nh5 {[%clk 0:00:43.1]} 24... g6 {[%clk
0:00:41.5]} 25. Nf4 {[%clk 0:00:38.8]} 25... Rc3 {[%clk 0:00:39.4]} 26. Qg4
{[%clk 0:00:35.2]} 26... h5 {[%clk 0:00:32.2]} 27. Qg5 {[%clk 0:00:31.5]} 27...
Kh7 {[%clk 0:00:20.7]} 28. Nd5 {[%clk 0:00:27.1]} 28... Rc6 {[%clk 0:00:15.1]}
29. Ne3 {[%clk 0:00:15.5]} 29... Qe4 {[%clk 0:00:14.8]} 30. Nc4 {[%clk
0:00:11.1]} 30... Qe7 {[%clk 0:00:14.2]} 31. Qd5 {[%clk 0:00:10.6]} 31... Re6
{[%clk 0:00:13.6]} 32. Kh2 {[%clk 0:00:09.7]} 32... Kg7 {[%clk 0:00:11.1]} 33.
f4 {[%clk 0:00:09.3]} 33... Qf6 {[%clk 0:00:11.4]} 34. Qxb7 {[%clk 0:00:05.6]}
34... Re2 {[%clk 0:00:10]} 35. Qf3 {[%clk 0:00:04.8]} 35... Rxa2 {[%clk
0:00:07.8]} 36. Ne5 {[%clk 0:00:05]} 36... Qxf4+ {[%clk 0:00:07.3]} 37. Qxf4
{[%clk 0:00:05]} 37... Re7 {[%clk 0:00:06.7]} 38. Qf6+ {[%clk 0:00:05.2]} 1-0